[Event "Early-Titled-Tuesday-Blitz-September-05-2023"]
[Site "Chess.com"]
[Date "2023.09.05"]
[Round "8"]
[White "Hope_6"]
[Black "Barbus89"]
[Result "1-0"]
[WhiteElo "2718"]
[BlackElo "2562"]
[TimeControl "180+1"]
[EndTime "9:26:48 PDT"]
[Termination "Hope_6 won by checkmate"]

1. d4 {[%clk 0:03:00]} 1... Nf6 {[%clk 0:02:59.7]} 2. c4 {[%clk 0:03:00.3]} 2...
e6 {[%clk 0:02:58.6]} 3. Nf3 {[%clk 0:02:59.7]} 3... Bb4+ {[%clk 0:02:58.4]} 4.
Nbd2 {[%clk 0:02:59.4]} 4... O-O {[%clk 0:02:57.5]} 5. a3 {[%clk 0:02:58.5]}
5... Bxd2+ {[%clk 0:02:57.3]} 6. Bxd2 {[%clk 0:02:59]} 6... d6 {[%clk
0:02:48.5]} 7. e3 {[%clk 0:02:58.5]} 7... Nbd7 {[%clk 0:02:47]} 8. Bd3 {[%clk
0:02:56.2]} 8... e5 {[%clk 0:02:37.8]} 9. Qc2 {[%clk 0:02:55.5]} 9... Qe7 {[%clk
0:02:37.4]} 10. e4 {[%clk 0:02:46.9]} 10... exd4 {[%clk 0:02:17.6]} 11. Nxd4
{[%clk 0:02:46.5]} 11... Nc5 {[%clk 0:02:18.3]} 12. f3 {[%clk 0:02:45.1]} 12...
Bd7 {[%clk 0:01:59.3]} 13. O-O {[%clk 0:02:42.8]} 13... Rfe8 {[%clk 0:01:57.8]}
14. Bc3 {[%clk 0:02:37.8]} 14... Na4 {[%clk 0:01:29.5]} 15. Bd2 {[%clk
0:02:33.7]} 15... Qe5 {[%clk 0:01:10.2]} 16. Be3 {[%clk 0:02:32.9]} 16... c5
{[%clk 0:01:00.6]} 17. Ne2 {[%clk 0:02:04.2]} 17... Qxb2 {[%clk 0:00:56.8]} 18.
Rab1 {[%clk 0:02:01.4]} 18... Qxc2 {[%clk 0:00:55.7]} 19. Bxc2 {[%clk
0:02:01.7]} 19... Nb6 {[%clk 0:00:55.2]} 20. Bb3 {[%clk 0:01:55.2]} 20... Be6
{[%clk 0:00:36.2]} 21. Rbc1 {[%clk 0:01:49.6]} 21... Nfd7 {[%clk 0:00:28.9]} 22.
Nf4 {[%clk 0:01:46.3]} 22... Ne5 {[%clk 0:00:23]} 23. Nxe6 {[%clk 0:01:44.5]}
23... fxe6 {[%clk 0:00:18.4]} 24. Rfd1 {[%clk 0:01:44.6]} 24... Rad8 {[%clk
0:00:16.7]} 25. a4 {[%clk 0:01:44.3]} 25... Nc6 {[%clk 0:00:16.4]} 26. Kf2
{[%clk 0:01:40.8]} 26... e5 {[%clk 0:00:15.8]} 27. Bd2 {[%clk 0:01:38.9]} 27...
Nd4 {[%clk 0:00:15.7]} 28. Rb1 {[%clk 0:01:32.3]} 28... Nd7 {[%clk 0:00:10]} 29.
a5 {[%clk 0:01:30.1]} 29... Nb8 {[%clk 0:00:09.5]} 30. Ba4 {[%clk 0:01:29.5]}
30... Re7 {[%clk 0:00:09.7]} 31. Rb2 {[%clk 0:01:29.2]} 31... Nbc6 {[%clk
0:00:06.1]} 32. Rdb1 {[%clk 0:01:29.3]} 32... Rdd7 {[%clk 0:00:03]} 33. Bc3
{[%clk 0:01:26.5]} 33... Kf7 {[%clk 0:00:03.5]} 34. Ke3 {[%clk 0:01:25.9]} 34...
Re6 {[%clk 0:00:02.6]} 35. Kd3 {[%clk 0:01:19.7]} 35... Ree7 {[%clk 0:00:02.3]}
36. g3 {[%clk 0:01:11.3]} 36... Ke6 {[%clk 0:00:02.8]} 37. f4 {[%clk 0:01:10.4]}
37... exf4 {[%clk 0:00:03.7]} 38. gxf4 {[%clk 0:01:11]} 38... Rf7 {[%clk
0:00:04.3]} 39. f5+ {[%clk 0:01:08.5]} 39... Ke5 {[%clk 0:00:04.5]} 40. Bxd4+
{[%clk 0:01:04.6]} 40... cxd4 {[%clk 0:00:03.1]} 41. a6 {[%clk 0:01:04.9]} 41...
b6 {[%clk 0:00:04]} 42. Bxc6 {[%clk 0:01:04.4]} 42... Rc7 {[%clk 0:00:04.1]} 43.
Rb5+ {[%clk 0:01:03.7]} 43... Kf6 {[%clk 0:00:03.3]} 44. Bd5 {[%clk 0:01:03.4]}
44... Rfe7 {[%clk 0:00:03.6]} 45. Kxd4 {[%clk 0:01:03.4]} 45... g6 {[%clk
0:00:04.2]} 46. Rf1 {[%clk 0:01:01.4]} 46... g5 {[%clk 0:00:03.8]} 47. Rb2
{[%clk 0:01:00.4]} 47... h6 {[%clk 0:00:03.6]} 48. Rg2 {[%clk 0:00:59.5]} 48...
Rc5 {[%clk 0:00:03.6]} 49. h4 {[%clk 0:00:59.1]} 49... Rh7 {[%clk 0:00:02.5]}
50. Rh1 {[%clk 0:00:58.5]} 50... Rg7 {[%clk 0:00:01.6]} 51. hxg5+ {[%clk
0:00:58.5]} 51... Rxg5 {[%clk 0:00:01.2]} 52. Rxh6+ {[%clk 0:00:58.2]} 52... Kg7
{[%clk 0:00:02.1]} 53. Rxg5+ {[%clk 0:00:57.9]} 53... Kxh6 {[%clk 0:00:03]} 54.
Rg6+ {[%clk 0:00:58.2]} 54... Kh7 {[%clk 0:00:03.9]} 55. Rxd6 {[%clk 0:00:58.6]}
55... Kh8 {[%clk 0:00:04.8]} 56. Rd7 {[%clk 0:00:57.6]} 56... Ra5 {[%clk
0:00:04.6]} 57. f6 {[%clk 0:00:56.6]} 57... b5 {[%clk 0:00:04]} 58. f7 {[%clk
0:00:55.2]} 58... Kg7 {[%clk 0:00:03.5]} 59. Rd8 {[%clk 0:00:55.5]} 59... Kg6
{[%clk 0:00:02]} 60. f8=Q {[%clk 0:00:55.5]} 60... Kg5 {[%clk 0:00:02.9]} 61.
Qf5+ {[%clk 0:00:55.4]} 61... Kh4 {[%clk 0:00:03.1]} 62. Rh8+ {[%clk 0:00:55.7]}
62... Kg3 {[%clk 0:00:04]} 63. Rh3+ {[%clk 0:00:56.1]} 63... Kg2 {[%clk
0:00:04]} 64. Qf3+ {[%clk 0:00:56.7]} 64... Kg1 {[%clk 0:00:04.9]} 65. Rh1#
{[%clk 0:00:56.2]} 1-0

[Event "Early-Titled-Tuesday-Blitz-September-05-2023"]
[Site "Chess.com"]
[Date "2023.09.05"]
[Round "8"]
[White "Vuk2000"]
[Black "rasmussvane"]
[Result "0-1"]
[WhiteElo "2747"]
[BlackElo "2955"]
[TimeControl "180+1"]
[EndTime "9:26:53 PDT"]
[Termination "rasmussvane won by resignation"]

1. d4 {[%clk 0:03:00.9]} 1... d5 {[%clk 0:02:59.1]} 2. Bf4 {[%clk 0:02:58.8]}
2... Nf6 {[%clk 0:02:57.5]} 3. e3 {[%clk 0:02:58.4]} 3... e6 {[%clk 0:02:57]} 4.
Nd2 {[%clk 0:02:58.3]} 4... Bd6 {[%clk 0:02:57.3]} 5. Bg3 {[%clk 0:02:58.6]}
5... O-O {[%clk 0:02:57.6]} 6. c3 {[%clk 0:02:56]} 6... c5 {[%clk 0:02:57.8]} 7.
Ngf3 {[%clk 0:02:55.2]} 7... Qc7 {[%clk 0:02:57.9]} 8. dxc5 {[%clk 0:02:54.2]}
8... Qxc5 {[%clk 0:02:57.4]} 9. Bd3 {[%clk 0:02:44.7]} 9... Nbd7 {[%clk
0:02:56.4]} 10. O-O {[%clk 0:02:37.7]} 10... Bxg3 {[%clk 0:02:43.9]} 11. hxg3
{[%clk 0:02:37.4]} 11... Qc7 {[%clk 0:02:44.8]} 12. Rc1 {[%clk 0:02:31]} 12...
Nc5 {[%clk 0:02:44.2]} 13. Bb1 {[%clk 0:02:31]} 13... b5 {[%clk 0:02:41.1]} 14.
Nb3 {[%clk 0:02:23.2]} 14... Nce4 {[%clk 0:02:37.4]} 15. Qe2 {[%clk 0:02:06.3]}
15... a6 {[%clk 0:02:34.3]} 16. Nfd2 {[%clk 0:02:05.9]} 16... Nd6 {[%clk
0:02:33.6]} 17. e4 {[%clk 0:01:47.3]} 17... dxe4 {[%clk 0:02:32.5]} 18. Nxe4
{[%clk 0:01:47.9]} 18... Ndxe4 {[%clk 0:02:32.9]} 19. Bxe4 {[%clk 0:01:48.6]}
19... Nxe4 {[%clk 0:02:33.6]} 20. Qxe4 {[%clk 0:01:49.4]} 20... Bb7 {[%clk
0:02:34.2]} 21. Qe3 {[%clk 0:01:45.2]} 21... Bd5 {[%clk 0:02:26.2]} 22. Rcd1
{[%clk 0:01:32.9]} 22... a5 {[%clk 0:02:14.1]} 23. Rd2 {[%clk 0:00:49.5]} 23...
Rfc8 {[%clk 0:02:11.1]} 24. Nd4 {[%clk 0:00:45]} 24... b4 {[%clk 0:02:04.9]} 25.
cxb4 {[%clk 0:00:40.8]} 25... axb4 {[%clk 0:02:04.1]} 26. b3 {[%clk 0:00:40.6]}
26... Qb7 {[%clk 0:01:56.8]} 27. f3 {[%clk 0:00:33.5]} 27... h6 {[%clk
0:01:57.1]} 28. Rfd1 {[%clk 0:00:32.7]} 28... Ra5 {[%clk 0:01:52.1]} 29. Qf2
{[%clk 0:00:21.1]} 29... Rca8 {[%clk 0:01:42.5]} 30. Rc1 {[%clk 0:00:19.8]}
30... Rc8 {[%clk 0:01:34.6]} 31. Rxc8+ {[%clk 0:00:18.2]} 31... Qxc8 {[%clk
0:01:35.5]} 32. Rc2 {[%clk 0:00:18.4]} 32... Rc5 {[%clk 0:01:29.8]} 33. Qd2
{[%clk 0:00:11.6]} 33... e5 {[%clk 0:01:12.5]} 34. Qxb4 {[%clk 0:00:06.6]} 34...
Rxc2 {[%clk 0:01:11.9]} 35. Nxc2 {[%clk 0:00:06.6]} 35... Qxc2 {[%clk
0:01:12.8]} 36. Qb8+ {[%clk 0:00:06.9]} 36... Kh7 {[%clk 0:01:12.8]} 37. Qxe5
{[%clk 0:00:07.6]} 37... Be6 {[%clk 0:01:05.3]} 38. Qa1 {[%clk 0:00:07.3]} 38...
h5 {[%clk 0:00:58.3]} 39. Kh2 {[%clk 0:00:07.5]} 39... g6 {[%clk 0:00:47]} 40.
Kg1 {[%clk 0:00:06.9]} 40... Qc7 {[%clk 0:00:44.7]} 41. Kf2 {[%clk 0:00:03.7]}
41... Qc5+ {[%clk 0:00:42.8]} 42. Ke2 {[%clk 0:00:03.6]} 42... Bc8 {[%clk
0:00:38.6]} 43. Qf6 {[%clk 0:00:03.4]} 43... Qc2+ {[%clk 0:00:35.9]} 44. Ke3
{[%clk 0:00:03.4]} 44... Be6 {[%clk 0:00:36.1]} 45. b4 {[%clk 0:00:02.2]} 45...
Qxa2 {[%clk 0:00:35.3]} 46. Qd4 {[%clk 0:00:00.9]} 46... Qxg2 {[%clk 0:00:32.4]}
47. Kf4 {[%clk 0:00:01.4]} 47... g5+ {[%clk 0:00:25.9]} 48. Kxg5 {[%clk
0:00:01.4]} 48... Qxg3+ {[%clk 0:00:26.1]} 49. Kf6 {[%clk 0:00:01.5]} 49... Qg7+
{[%clk 0:00:25.9]} 50. Ke7 {[%clk 0:00:02.4]} 50... Qxd4 {[%clk 0:00:26]} 0-1

[Event "Early-Titled-Tuesday-Blitz-September-05-2023"]
[Site "Chess.com"]
[Date "2023.09.05"]
[Round "8"]
[White "GMG"]
[Black "BlitzWizard04"]
[Result "1-0"]
[WhiteElo "2787"]
[BlackElo "2607"]
[TimeControl "180+1"]
[EndTime "9:26:54 PDT"]
[Termination "GMG won on time"]

1. d4 {[%clk 0:03:00.9]} 1... Nf6 {[%clk 0:02:59.6]} 2. c4 {[%clk 0:03:00.6]}
2... e6 {[%clk 0:02:59.8]} 3. Nf3 {[%clk 0:03:00.4]} 3... b6 {[%clk 0:03:00]} 4.
g3 {[%clk 0:03:00.4]} 4... Bb7 {[%clk 0:03:00.4]} 5. Bg2 {[%clk 0:03:00.7]} 5...
Be7 {[%clk 0:03:01.2]} 6. O-O {[%clk 0:03:01.1]} 6... O-O {[%clk 0:03:01.9]} 7.
Nc3 {[%clk 0:03:00.7]} 7... Ne4 {[%clk 0:03:01.4]} 8. Bd2 {[%clk 0:03:01.3]}
8... Nxd2 {[%clk 0:02:59.2]} 9. Qxd2 {[%clk 0:03:02.2]} 9... c5 {[%clk
0:02:59.6]} 10. d5 {[%clk 0:03:01]} 10... d6 {[%clk 0:02:57.5]} 11. h4 {[%clk
0:02:51.8]} 11... e5 {[%clk 0:02:52]} 12. e4 {[%clk 0:02:51.8]} 12... h6 {[%clk
0:02:48.3]} 13. Ne1 {[%clk 0:02:41.8]} 13... f5 {[%clk 0:02:44]} 14. exf5 {[%clk
0:02:40.3]} 14... Bc8 {[%clk 0:02:44.2]} 15. Be4 {[%clk 0:02:35.8]} 15... Bxf5
{[%clk 0:02:43.7]} 16. Bxf5 {[%clk 0:02:34]} 16... Rxf5 {[%clk 0:02:44.6]} 17.
Ng2 {[%clk 0:02:27.7]} 17... Nd7 {[%clk 0:02:42.8]} 18. Ne3 {[%clk 0:02:27.1]}
18... Rf8 {[%clk 0:02:39.2]} 19. Ne4 {[%clk 0:02:25.1]} 19... Nf6 {[%clk
0:02:35.4]} 20. Qc2 {[%clk 0:02:22.4]} 20... Qd7 {[%clk 0:02:27.6]} 21. Nxf6+
{[%clk 0:02:17.6]} 21... Bxf6 {[%clk 0:02:23.5]} 22. Qe4 {[%clk 0:02:17.6]}
22... b5 {[%clk 0:02:15.1]} 23. Kg2 {[%clk 0:02:09.1]} 23... Rab8 {[%clk
0:02:15.2]} 24. b3 {[%clk 0:01:59.6]} 24... a5 {[%clk 0:02:08.3]} 25. Rab1
{[%clk 0:01:56.9]} 25... a4 {[%clk 0:02:02.9]} 26. bxa4 {[%clk 0:01:41.1]} 26...
bxa4 {[%clk 0:01:58.1]} 27. Qf5 {[%clk 0:01:35.6]} 27... Qc7 {[%clk 0:01:30.8]}
28. Rxb8 {[%clk 0:01:07.9]} 28... Rxb8 {[%clk 0:01:29.1]} 29. Rb1 {[%clk
0:01:08.2]} 29... Rb4 {[%clk 0:01:17.8]} 30. a3 {[%clk 0:01:03.7]} 30... Rb3
{[%clk 0:01:10.1]} 31. Qe6+ {[%clk 0:01:03.5]} 31... Kh8 {[%clk 0:01:06.7]} 32.
Rxb3 {[%clk 0:00:59.2]} 32... axb3 {[%clk 0:01:07.2]} 33. Qe8+ {[%clk
0:00:59.8]} 33... Kh7 {[%clk 0:01:06.7]} 34. Qb5 {[%clk 0:01:00.1]} 34... b2
{[%clk 0:00:39.4]} 35. Qxb2 {[%clk 0:00:58.7]} 35... Qa5 {[%clk 0:00:40]} 36.
Qb1+ {[%clk 0:00:51.6]} 36... Kh8 {[%clk 0:00:39.5]} 37. Qb8+ {[%clk 0:00:51.2]}
37... Kh7 {[%clk 0:00:22.1]} 38. Qxd6 {[%clk 0:00:50.8]} 38... Qxa3 {[%clk
0:00:22.8]} 39. Qe6 {[%clk 0:00:50.6]} 39... Qc3 {[%clk 0:00:05.9]} 40. Qf5+
{[%clk 0:00:48.2]} 40... Kh8 {[%clk 0:00:06]} 41. d6 {[%clk 0:00:45.7]} 41...
Qd4 {[%clk 0:00:06.1]} 42. d7 {[%clk 0:00:44.4]} 42... Qd6 {[%clk 0:00:03.2]}
43. Nd5 {[%clk 0:00:39.9]} 43... Bd8 {[%clk 0:00:02.6]} 44. Qf7 {[%clk
0:00:36.3]} 44... Kh7 {[%clk 0:00:02.5]} 45. h5 {[%clk 0:00:33.8]} 45... e4
{[%clk 0:00:02.1]} 46. Nf4 {[%clk 0:00:27.4]} 46... Qe5 {[%clk 0:00:01.7]} 47.
Ng6 {[%clk 0:00:22.4]} 1-0

[Event "Early-Titled-Tuesday-Blitz-September-05-2023"]
[Site "Chess.com"]
[Date "2023.09.05"]
[Round "8"]
[White "fen_fire"]
[Black "JaloliddinIlkhomi"]
[Result "1/2-1/2"]
[WhiteElo "2490"]
[BlackElo "2569"]
[TimeControl "180+1"]
[EndTime "9:26:56 PDT"]
[Termination "Game drawn by 50-move rule"]

1. b3 {[%clk 0:03:00.9]} 1... Nf6 {[%clk 0:02:58.1]} 2. Bb2 {[%clk 0:03:01.8]}
2... e6 {[%clk 0:02:58.7]} 3. c4 {[%clk 0:03:01.2]} 3... b6 {[%clk 0:02:59.1]}
4. Nf3 {[%clk 0:03:00.6]} 4... Bb7 {[%clk 0:02:59.4]} 5. e3 {[%clk 0:03:01.4]}
5... d5 {[%clk 0:02:59.9]} 6. Be2 {[%clk 0:03:01.6]} 6... Nbd7 {[%clk
0:03:00.4]} 7. O-O {[%clk 0:03:01.7]} 7... Bd6 {[%clk 0:03:01]} 8. Nc3 {[%clk
0:03:02]} 8... a6 {[%clk 0:03:00.9]} 9. Rc1 {[%clk 0:03:02]} 9... O-O {[%clk
0:03:01.5]} 10. d3 {[%clk 0:03:02.1]} 10... Rc8 {[%clk 0:03:02.1]} 11. Qd2
{[%clk 0:03:01.9]} 11... c5 {[%clk 0:03:02.4]} 12. Rfd1 {[%clk 0:03:02.5]} 12...
Qe7 {[%clk 0:03:02.8]} 13. cxd5 {[%clk 0:03:02.7]} 13... Nxd5 {[%clk 0:03:03.4]}
14. Nxd5 {[%clk 0:03:02.4]} 14... exd5 {[%clk 0:03:03.5]} 15. d4 {[%clk
0:03:00.8]} 15... Nf6 {[%clk 0:03:02.3]} 16. Qe1 {[%clk 0:02:57.5]} 16... Ne4
{[%clk 0:03:02.2]} 17. Qf1 {[%clk 0:02:57.7]} 17... f5 {[%clk 0:03:02]} 18. Bxa6
{[%clk 0:02:55.4]} 18... Ba8 {[%clk 0:02:54.5]} 19. Bxc8 {[%clk 0:02:54.3]}
19... Rxc8 {[%clk 0:02:53.7]} 20. dxc5 {[%clk 0:02:54.6]} 20... bxc5 {[%clk
0:02:52.8]} 21. Nd2 {[%clk 0:02:49.1]} 21... Nxd2 {[%clk 0:02:37.4]} 22. Rxd2
{[%clk 0:02:50]} 22... Rc6 {[%clk 0:02:32.8]} 23. Rxd5 {[%clk 0:02:47.9]} 23...
Bxh2+ {[%clk 0:02:31.8]} 24. Kxh2 {[%clk 0:02:41]} 24... Rh6+ {[%clk 0:02:30.2]}
25. Kg1 {[%clk 0:02:37.4]} 25... Bxd5 {[%clk 0:02:30.7]} 26. Qb5 {[%clk
0:02:21.4]} 26... Rg6 {[%clk 0:02:21.9]} 27. Qxc5 {[%clk 0:02:05.3]} 27... Qxc5
{[%clk 0:02:17.9]} 28. Rxc5 {[%clk 0:02:03.8]} 28... Bxg2 {[%clk 0:02:18.5]} 29.
Rc8+ {[%clk 0:02:00.7]} 29... Kf7 {[%clk 0:02:18]} 30. Rc7+ {[%clk 0:02:01.3]}
30... Ke6 {[%clk 0:02:08.2]} 31. Rxg7 {[%clk 0:01:59]} 31... Bd5+ {[%clk
0:02:06.5]} 32. Rxg6+ {[%clk 0:01:58.1]} 32... hxg6 {[%clk 0:02:07.4]} 33. f4
{[%clk 0:01:51]} 33... Kd7 {[%clk 0:02:04.9]} 34. Kf2 {[%clk 0:01:50.4]} 34...
Kc6 {[%clk 0:02:05.4]} 35. Ke1 {[%clk 0:01:50.4]} 35... Kb5 {[%clk 0:02:05.7]}
36. Kd2 {[%clk 0:01:50.7]} 36... Kb4 {[%clk 0:02:04.9]} 37. Kc2 {[%clk
0:01:14.1]} 37... Be4+ {[%clk 0:02:02.8]} 38. Kc1 {[%clk 0:01:14.6]} 38... Bd3
{[%clk 0:01:52.3]} 39. Kd2 {[%clk 0:00:33]} 39... Bb1 {[%clk 0:01:47.9]} 40.
Bc3+ {[%clk 0:00:22.2]} 40... Ka3 {[%clk 0:01:47.1]} 41. b4 {[%clk 0:00:21.1]}
41... Bxa2 {[%clk 0:01:35.7]} 42. b5 {[%clk 0:00:20.6]} 42... Ka4 {[%clk
0:01:35.8]} 43. b6 {[%clk 0:00:20.9]} 43... Bd5 {[%clk 0:01:36.5]} 44. Bd4
{[%clk 0:00:21.6]} 44... Kb5 {[%clk 0:01:36.8]} 45. Ke1 {[%clk 0:00:21.8]} 45...
Kc6 {[%clk 0:01:37.3]} 46. Kf2 {[%clk 0:00:22.5]} 46... Kb7 {[%clk 0:01:37.9]}
47. Kg3 {[%clk 0:00:23.4]} 47... Be4 {[%clk 0:01:38.4]} 48. Kh4 {[%clk
0:00:23.9]} 48... Bd3 {[%clk 0:01:39.1]} 49. Kg5 {[%clk 0:00:24.6]} 49... Be4
{[%clk 0:01:40]} 50. Kxg6 {[%clk 0:00:25]} 50... Bd3 {[%clk 0:01:40.9]} 51. Kf6
{[%clk 0:00:25.7]} 51... Be4 {[%clk 0:01:41.8]} 52. Ke5 {[%clk 0:00:26.4]} 52...
Bd3 {[%clk 0:01:42.5]} 53. Kd6 {[%clk 0:00:27.3]} 53... Be4 {[%clk 0:01:43.4]}
54. Kc5 {[%clk 0:00:28.2]} 54... Bd3 {[%clk 0:01:44]} 55. Kb4 {[%clk 0:00:29.1]}
55... Be4 {[%clk 0:01:44.9]} 56. Ka3 {[%clk 0:00:30]} 56... Bf3 {[%clk
0:01:45.6]} 57. Kb2 {[%clk 0:00:30.9]} 57... Be4 {[%clk 0:01:46.5]} 58. Kc1
{[%clk 0:00:31.7]} 58... Bd5 {[%clk 0:01:47.4]} 59. Kd2 {[%clk 0:00:32.6]} 59...
Be4 {[%clk 0:01:48.3]} 60. Ke1 {[%clk 0:00:33.5]} 60... Bd5 {[%clk 0:01:49.2]}
61. Kf2 {[%clk 0:00:34.4]} 61... Be4 {[%clk 0:01:50.1]} 62. Kg3 {[%clk
0:00:34.5]} 62... Bd5 {[%clk 0:01:50.8]} 63. Kh4 {[%clk 0:00:35.4]} 63... Be4
{[%clk 0:01:51.7]} 64. Kg5 {[%clk 0:00:35.9]} 64... Bd3 {[%clk 0:01:52.6]} 65.
Kf6 {[%clk 0:00:36.8]} 65... Be4 {[%clk 0:01:53.5]} 66. Ke6 {[%clk 0:00:37.7]}
66... Bd3 {[%clk 0:01:54.3]} 67. Ke5 {[%clk 0:00:38.6]} 67... Be4 {[%clk
0:01:55.2]} 68. Kd6 {[%clk 0:00:38.2]} 68... Bd3 {[%clk 0:01:56.1]} 69. Ke5
{[%clk 0:00:39.1]} 69... Be4 {[%clk 0:01:57]} 70. Kf6 {[%clk 0:00:27.8]} 70...
Bd3 {[%clk 0:01:57.9]} 71. e4 {[%clk 0:00:27.9]} 71... Bxe4 {[%clk 0:01:58.8]}
72. Ke5 {[%clk 0:00:27.9]} 72... Bd3 {[%clk 0:01:58.6]} 73. Kf6 {[%clk
0:00:27.9]} 73... Kc6 {[%clk 0:01:57.9]} 74. Be5 {[%clk 0:00:28.8]} 74... Kxb6
{[%clk 0:01:56.7]} 75. Kg5 {[%clk 0:00:29.7]} 75... Kc6 {[%clk 0:01:57.3]} 76.
Kh4 {[%clk 0:00:30.6]} 76... Kd5 {[%clk 0:01:58.2]} 77. Kg3 {[%clk 0:00:31.5]}
77... Ke4 {[%clk 0:01:58.9]} 78. Kf2 {[%clk 0:00:32.4]} 78... Bc4 {[%clk
0:01:59.8]} 79. Ke1 {[%clk 0:00:33.2]} 79... Be6 {[%clk 0:02:00.7]} 80. Kd2
{[%clk 0:00:33.7]} 80... Bf7 {[%clk 0:02:01.6]} 81. Kc1 {[%clk 0:00:34.6]} 81...
Bh5 {[%clk 0:02:02.5]} 82. Kb1 {[%clk 0:00:35.2]} 82... Bg4 {[%clk 0:02:03.4]}
83. Kb2 {[%clk 0:00:36.1]} 83... Bh3 {[%clk 0:02:04.3]} 84. Ka3 {[%clk 0:00:37]}
84... Bg2 {[%clk 0:02:05.2]} 85. Kb4 {[%clk 0:00:37.5]} 85... Bh1 {[%clk
0:02:06.1]} 86. Kc5 {[%clk 0:00:38.4]} 86... Bf3 {[%clk 0:02:07]} 87. Kd6 {[%clk
0:00:38.9]} 87... Be2 {[%clk 0:02:07.9]} 88. Ke7 {[%clk 0:00:39.4]} 88... Bf1
{[%clk 0:02:08.8]} 89. Kf8 {[%clk 0:00:40]} 89... Bc4 {[%clk 0:02:09.7]} 90. Kg7
{[%clk 0:00:40]} 90... Ba2 {[%clk 0:02:10.6]} 91. Kh6 {[%clk 0:00:40.4]} 91...
Bb1 {[%clk 0:02:11.5]} 92. Kg5 {[%clk 0:00:41.3]} 92... Bc2 {[%clk 0:02:12.4]}
93. Kh4 {[%clk 0:00:42.2]} 93... Bb3 {[%clk 0:02:13.3]} 94. Kg3 {[%clk
0:00:43.1]} 94... Ba4 {[%clk 0:02:14.2]} 95. Kh2 {[%clk 0:00:44]} 95... Bb5
{[%clk 0:02:15.1]} 96. Kg1 {[%clk 0:00:44.9]} 96... Ba6 {[%clk 0:02:16]} 97. Kf2
{[%clk 0:00:45.8]} 97... Bb7 {[%clk 0:02:16.9]} 98. Ke1 {[%clk 0:00:46.7]} 98...
Ba8 {[%clk 0:02:17.8]} 99. Kd2 {[%clk 0:00:47.6]} 99... Bc6 {[%clk 0:02:18.7]}
100. Kc1 {[%clk 0:00:48.5]} 100... Bd7 {[%clk 0:02:19.6]} 101. Kb2 {[%clk
0:00:49.4]} 101... Be8 {[%clk 0:02:20.5]} 102. Ka1 {[%clk 0:00:50.3]} 102... Bf7
{[%clk 0:02:21.4]} 103. Kb2 {[%clk 0:00:51.2]} 103... Bg6 {[%clk 0:02:22.3]}
104. Kc1 {[%clk 0:00:52.1]} 104... Bh5 {[%clk 0:02:23.2]} 105. Kc2 {[%clk
0:00:53]} 105... Bg4 {[%clk 0:02:24.1]} 106. Kc1 {[%clk 0:00:53.9]} 106... Bh3
{[%clk 0:02:25]} 107. Kd2 {[%clk 0:00:54.6]} 107... Bg4 {[%clk 0:02:25.9]} 108.
Ke1 {[%clk 0:00:55.5]} 108... Bh5 {[%clk 0:02:26.8]} 109. Kf2 {[%clk 0:00:55.6]}
109... Be8 {[%clk 0:02:27.7]} 110. Kg1 {[%clk 0:00:55.5]} 110... Bc6 {[%clk
0:02:28.3]} 111. Kh2 {[%clk 0:00:55.6]} 111... Kd3 {[%clk 0:02:29.2]} 112. Kg3
{[%clk 0:00:56.2]} 112... Be4 {[%clk 0:02:30.1]} 113. Kh4 {[%clk 0:00:56.2]}
113... Kc4 {[%clk 0:02:31]} 114. Kg5 {[%clk 0:00:55.5]} 114... Kd5 {[%clk
0:02:31.9]} 115. Kh5 {[%clk 0:00:55.5]} 115... Kc6 {[%clk 0:02:32.8]} 116. Kh6
{[%clk 0:00:55.8]} 116... Kb5 {[%clk 0:02:33.7]} 117. Kg7 {[%clk 0:00:56.3]}
117... Kc4 {[%clk 0:02:34.6]} 118. Kg8 {[%clk 0:00:56.4]} 118... Kb3 {[%clk
0:02:35.5]} 119. Kh8 {[%clk 0:00:57.3]} 119... Kc2 {[%clk 0:02:36.4]} 120. Kh7
{[%clk 0:00:58.2]} 120... Kd1 {[%clk 0:02:37.3]} 121. Kg6 {[%clk 0:00:59.1]}
121... Ke2 {[%clk 0:02:38.2]} 122. Kh5 {[%clk 0:01:00]} 122... Kf3 {[%clk
0:02:39.1]} 123. Kg5 {[%clk 0:01:00.9]} 123... Kg3 {[%clk 0:02:39.4]} 124. Kg6
{[%clk 0:01:00.1]} 124... Kf2 {[%clk 0:02:40.3]} 1/2-1/2

[Event "Early-Titled-Tuesday-Blitz-September-05-2023"]
[Site "Chess.com"]
[Date "2023.09.05"]
[Round "8"]
[White "Heinza9"]
[Black "SaiHanThiha"]
[Result "1-0"]
[WhiteElo "2305"]
[BlackElo "2460"]
[TimeControl "180+1"]
[EndTime "9:26:57 PDT"]
[Termination "Heinza9 won by checkmate"]

1. e4 {[%clk 0:02:40.5]} 1... c6 {[%clk 0:02:59.7]} 2. d4 {[%clk 0:02:40]} 2...
d5 {[%clk 0:03:00.6]} 3. exd5 {[%clk 0:02:40.3]} 3... cxd5 {[%clk 0:03:00.8]} 4.
c4 {[%clk 0:02:40.9]} 4... Nf6 {[%clk 0:03:00.1]} 5. Nc3 {[%clk 0:02:41]} 5...
e6 {[%clk 0:03:00.3]} 6. Nf3 {[%clk 0:02:40.6]} 6... Bb4 {[%clk 0:02:59.5]} 7.
cxd5 {[%clk 0:02:39.7]} 7... Nxd5 {[%clk 0:02:58.9]} 8. Bd2 {[%clk 0:02:40.1]}
8... O-O {[%clk 0:02:57.6]} 9. Bd3 {[%clk 0:02:40.3]} 9... b6 {[%clk 0:02:56]}
10. O-O {[%clk 0:02:39.7]} 10... Bb7 {[%clk 0:02:56.5]} 11. Qe2 {[%clk
0:02:39.9]} 11... Nd7 {[%clk 0:02:52.7]} 12. Rad1 {[%clk 0:02:37.6]} 12... Rc8
{[%clk 0:02:32.8]} 13. Rc1 {[%clk 0:02:24.2]} 13... Nxc3 {[%clk 0:02:09.7]} 14.
bxc3 {[%clk 0:02:22.9]} 14... Ba3 {[%clk 0:02:08.9]} 15. Rb1 {[%clk 0:02:18.5]}
15... Qc7 {[%clk 0:02:06.3]} 16. Rfe1 {[%clk 0:02:13.1]} 16... Rfe8 {[%clk
0:02:00.9]} 17. Rb3 {[%clk 0:01:56.4]} 17... Bd6 {[%clk 0:01:58.6]} 18. h3
{[%clk 0:01:56.7]} 18... Bd5 {[%clk 0:01:53.8]} 19. Rb2 {[%clk 0:01:43.1]} 19...
Bc4 {[%clk 0:01:48.3]} 20. Ng5 {[%clk 0:01:40]} 20... Nf6 {[%clk 0:01:44.8]} 21.
Ne4 {[%clk 0:01:37.1]} 21... Nxe4 {[%clk 0:01:36.2]} 22. Qxe4 {[%clk 0:01:34.2]}
22... Bxd3 {[%clk 0:01:35.7]} 23. Qxd3 {[%clk 0:01:34.5]} 23... Bh2+ {[%clk
0:01:30.6]} 24. Kh1 {[%clk 0:01:33.4]} 24... Bf4 {[%clk 0:01:31.5]} 25. Bxf4
{[%clk 0:01:24.8]} 25... Qxf4 {[%clk 0:01:30]} 26. c4 {[%clk 0:01:12.5]} 26...
Red8 {[%clk 0:01:28.2]} 27. Rd1 {[%clk 0:01:12.4]} 27... h6 {[%clk 0:01:22.2]}
28. g3 {[%clk 0:00:58.6]} 28... Qd6 {[%clk 0:01:19.3]} 29. d5 {[%clk 0:00:52]}
29... Qe5 {[%clk 0:00:56.2]} 30. Re2 {[%clk 0:00:49.2]} 30... Qh5 {[%clk
0:00:54.3]} 31. Kg2 {[%clk 0:00:40]} 31... exd5 {[%clk 0:00:54.2]} 32. g4 {[%clk
0:00:40.3]} 32... Qg5 {[%clk 0:00:44.8]} 33. cxd5 {[%clk 0:00:40.2]} 33... Rd6
{[%clk 0:00:43.1]} 34. Re4 {[%clk 0:00:36.3]} 34... Qd8 {[%clk 0:00:32.7]} 35.
Rd4 {[%clk 0:00:35.4]} 35... Qd7 {[%clk 0:00:24.8]} 36. Rd2 {[%clk 0:00:34.8]}
36... Rd8 {[%clk 0:00:24.1]} 37. Qe4 {[%clk 0:00:30.4]} 37... Qb5 {[%clk
0:00:23.7]} 38. h4 {[%clk 0:00:27.9]} 38... Qc5 {[%clk 0:00:20.1]} 39. g5 {[%clk
0:00:25.5]} 39... hxg5 {[%clk 0:00:18.6]} 40. hxg5 {[%clk 0:00:25.8]} 40... b5
{[%clk 0:00:19]} 41. f4 {[%clk 0:00:25.4]} 41... a5 {[%clk 0:00:17.2]} 42. f5
{[%clk 0:00:24]} 42... b4 {[%clk 0:00:17.1]} 43. R4d3 {[%clk 0:00:20.4]} 43...
a4 {[%clk 0:00:15.7]} 44. g6 {[%clk 0:00:17.2]} 44... fxg6 {[%clk 0:00:14.3]}
45. fxg6 {[%clk 0:00:17.4]} 45... Qb5 {[%clk 0:00:12.5]} 46. Qf5 {[%clk
0:00:15.8]} 46... b3 {[%clk 0:00:10.8]} 47. Qf7+ {[%clk 0:00:14.8]} 47... Kh8
{[%clk 0:00:10.9]} 48. Rh3# {[%clk 0:00:14.8]} 1-0